bitfinex-derivatives/quotes_BTCF0:USTF0_20241226
["timestamp","ask_amount","ask_price","bid_price","bid_amount"]
[1735202733337,0.15659544,95930.0,95919.0,0.041737]
[1735202733537,0.15659544,95930.0,95905.0,0.01328673]
[1735202733740,0.04173,95936.0,95923.0,0.041735]
[1735202734542,0.01187297,95941.0,95926.0,0.041733]
[1735202734747,0.01187297,95941.0,95929.0,0.041732]
[1735202735047,0.004,95936.0,95921.0,0.3281]
[1735202735346,0.007,95936.0,95922.0,0.041735]
[1735202735646,0.003,95936.0,95926.0,0.003]
[1735202736041,0.041731,95933.0,95926.0,0.003]
[1735202737444,0.00326131,95932.0,95926.0,0.003]
[1735202737651,0.00326131,95931.0,95926.0,0.001]
[1735202737945,0.00326152,95930.0,95926.0,0.001]
[1735202738145,0.00326152,95929.0,95926.0,0.001]
[1735202738336,0.041735,95923.0,95907.0,0.536142]
[1735202738538,0.041736,95921.0,95907.0,0.536142]
[1735202738740,0.041737,95918.0,95898.0,0.18584556]
[1735202738940,0.041739,95915.0,95898.0,0.041746]
[1735202739343,0.04174,95913.0,95898.0,0.041746]
[1735202739537,0.00326195,95912.0,95898.0,0.041746]
[1735202739744,0.00326195,95911.0,95907.0,0.006]
[1735202739945,0.00326195,95910.0,95907.0,0.006]
[1735202740141,0.31219544,95920.0,95907.0,0.006]
[1735202740142,0.00326212,95909.0,95907.0,0.006]
[1735202740340,0.00326212,95908.0,95907.0,0.006]
[1735202740744,0.00326219,95908.0,95907.0,0.006]
[1735202740949,0.041746,95899.0,95880.0,0.041753]
[1735202741146,0.041742,95907.0,95903.0,0.003]
[1735202741350,0.00326244,95906.0,95903.0,0.003]
[1735202741650,0.041742,95907.0,95903.0,0.003]
[1735202741851,0.00326232,95906.0,95903.0,0.005]
[1735202742051,0.041742,95907.0,95903.0,0.005]
[1735202742352,0.00326227,95906.0,95896.0,0.041747]
[1735202742549,0.004,95906.0,95896.0,0.041747]
[1735202743445,0.01335063,95907.0,95896.0,0.041747]
[1735202743749,0.001,95906.0,95904.0,0.041743]
[1735202743956,0.041733,95929.0,95916.0,0.041738]
[1735202744243,0.00326179,95928.0,95916.0,0.041738]
[1735202744446,0.041734,95926.0,95905.0,0.3173]
[1735202744640,0.00326179,95925.0,95911.0,0.04174]
[1735202744955,0.04499679,95924.0,95911.0,0.04174]
[1735202745253,0.00326179,95923.0,95911.0,0.04174]
[1735202745553,0.041735,95924.0,95911.0,0.04174]
[1735202745554,0.00326179,95922.0,95911.0,0.04174]
[1735202745737,0.00326179,95921.0,95911.0,0.04174]
[1735202745937,0.00326179,95920.0,95911.0,0.04174]
[1735202746139,0.00326179,95919.0,95911.0,0.04474]
[1735202746352,0.00326179,95918.0,95911.0,0.04574]
[1735202746657,0.041735,95924.0,95911.0,0.04574]
[1735202746840,0.00326158,95923.0,95913.0,0.041739]
[1735202747036,0.00326158,95922.0,95913.0,0.041739]
[1735202747242,0.00326158,95921.0,95913.0,0.041739]
[1735202747446,0.00326158,95920.0,95913.0,0.041739]
[1735202747654,0.00326158,95919.0,95913.0,0.041739]
[1735202747950,0.00326158,95918.0,95913.0,0.041739]
[1735202748147,0.00326155,95917.0,95913.0,0.041739]
[1735202748335,0.00326155,95916.0,95913.0,0.041739]
[1735202748542,0.00326155,95915.0,95913.0,0.041739]
[1735202748853,0.041735,95924.0,95913.0,0.042739]
[1735202749050,0.041736,95921.0,95913.0,0.001]
[1735202749253,0.01068039,95928.0,95913.0,0.003]
[1735202749552,0.041739,95914.0,95913.0,0.003]
[1735202749752,0.045001,95914.0,95913.0,0.003]
[1735202750137,0.05159083,95914.0,95913.0,0.002]
[1735202750340,0.041744,95903.0,95901.0,0.18584556]
[1735202750553,0.168862,95902.0,95901.0,0.18584556]
[1735202751752,0.210607,95902.0,95886.0,0.041751]
[1735202751948,0.041747,95897.0,95886.0,0.041751]
[1735202752252,0.003262,95896.0,95887.0,0.19851168]
[1735202752450,0.003262,95895.0,95889.0,0.04175]
[1735202752650,0.003262,95894.0,95890.0,0.041749]
[1735202752846,0.1696,95902.0,95890.0,0.041749]
[1735202753046,0.1656,95902.0,95890.0,0.041749]
[1735202753248,0.1666,95902.0,95890.0,0.041749]
[1735202754555,0.041745,95901.0,95890.0,0.041749]
[1735202754750,0.1666,95902.0,95890.0,0.002]
[1735202754951,0.041747,95897.0,95890.0,0.002]
[1735202755254,0.041747,95897.0,95890.0,0.003]
[1735202755646,0.1656,95902.0,95890.0,0.003]
[1735202755849,0.041747,95895.0,95890.0,0.003]
[1735202756144,0.041749,95891.0,95890.0,0.003]
[1735202757057,0.04836849,95891.0,95890.0,0.003]
[1735202758556,0.05891929,95891.0,95890.0,0.003]
[1735202758754,0.041754,95879.0,95878.0,0.18584556]
[1735202760557,0.041754,95879.0,95872.0,0.00156438]
[1735202760558,0.041757,95874.0,95872.0,0.00156438]
[1735202760755,0.041757,95874.0,95856.0,0.18584556]
[1735202761053,0.041762,95861.0,95856.0,0.18584556]
[1735202762250,0.041762,95861.0,95850.0,0.041767]
[1735202762649,0.041762,95861.0,95856.0,0.004]
[1735202762858,0.15676068,95866.0,95856.0,0.004]
[1735202763060,0.001,95861.0,95856.0,0.008]
[1735202763560,0.08932168,95887.0,95880.0,0.041754]
[1735202764551,0.08932168,95887.0,95885.0,0.041751]
[1735202765248,0.09032168,95887.0,95886.0,0.1612]
[1735202765649,0.04174,95912.0,95886.0,0.1612]
[1735202765854,0.00663593,95911.0,95900.0,0.15676068]
[1735202766158,0.04174,95912.0,95903.0,0.041744]
[1735202766355,0.08977117,95919.0,95904.0,0.041743]
[1735202766556,0.00663383,95918.0,95900.0,0.15676068]
[1735202766763,0.08977117,95919.0,95907.0,0.041742]
[1735202766960,0.041746,95899.0,95892.0,0.041748]
[1735202767855,0.041746,95899.0,95893.0,0.041748]
[1735202768462,0.042746,95899.0,95893.0,0.041748]
[1735202768657,0.042746,95899.0,95894.0,0.041747]
[1735202769054,0.041746,95899.0,95894.0,0.041747]
[1735202769255,0.042746,95899.0,95896.0,0.041747]
[1735202769453,0.041748,95894.0,95893.0,0.011]
[1735202769863,0.041748,95894.0,95893.0,0.007]
[1735202770064,0.001,95899.0,95898.0,0.041746]
[1735202770269,0.041741,95910.0,95906.0,0.041742]
[1735202770767,0.041741,95910.0,95886.0,0.34704556]
[1735202770768,0.001,95899.0,95897.0,0.041746]
[1735202770967,0.001,95899.0,95894.0,0.006]
[1735202771158,0.041747,95896.0,95894.0,0.006]
[1735202771465,0.041747,95896.0,95894.0,0.18584556]
[1735202771656,0.041745,95900.0,95894.0,0.18584556]
[1735202771851,0.041745,95900.0,95895.0,0.041747]
[1735202772056,0.041745,95900.0,95897.0,0.003]
[1735202772363,0.041746,95898.0,95897.0,0.003]
[1735202772560,0.041746,95898.0,95894.0,0.19184556]
[1735202772754,0.041746,95898.0,95894.0,0.006]
[1735202772959,0.041743,95906.0,95895.0,0.001]
[1735202773168,0.15676068,95920.0,95895.0,0.001]
[1735202773471,0.041746,95897.0,95895.0,0.001]
[1735202774457,0.10452728,95905.0,95895.0,0.001]
[1735202774759,0.041742,95908.0,95898.0,0.041745]
[1735202774958,0.0520323,95908.0,95898.0,0.041745]
[1735202775154,0.041738,95916.0,95907.0,0.041742]
[1735202775368,0.041738,95916.0,95908.0,0.041741]
[1735202776366,0.041738,95916.0,95910.0,0.04174]
[1735202776569,0.041735,95923.0,95906.0,0.10452728]
[1735202776869,0.041729,95938.0,95913.0,0.10452728]
[1735202777058,0.12031103,95939.0,95932.0,0.041731]
[1735202777374,0.12031103,95939.0,95924.0,0.10452728]
[1735202777867,0.12031103,95939.0,95933.0,0.04173]
[1735202778065,0.12031103,95939.0,95924.0,0.10452728]
[1735202778066,0.041729,95938.0,95924.0,0.10452728]
[1735202778269,0.12031103,95939.0,95928.0,0.15665654]
[1735202778569,0.00156436,95939.0,95928.0,0.15665654]
[1735202778776,0.00156436,95939.0,95937.0,0.041729]
[1735202779072,0.00856436,95939.0,95937.0,0.041729]
[1735202779267,0.002,95938.0,95937.0,0.041729]
[1735202780857,0.002,95938.0,95929.0,0.1591]
[1735202780858,0.041717,95966.0,95953.0,0.041721]
[1735202781058,0.041717,95966.0,95956.0,0.04172]
[1735202781661,0.041717,95966.0,95957.0,0.04172]
[1735202781867,0.11874667,95969.0,95960.0,0.041718]
[1735202782065,0.11874667,95969.0,95963.0,0.041717]
[1735202782269,0.001,95966.0,95963.0,0.041717]
[1735202782573,0.001,95966.0,95956.0,0.006]
[1735202782574,0.001,95966.0,95956.0,0.009]
[1735202782770,0.041718,95963.0,95956.0,0.009]
[1735202783174,0.04172,95958.0,95956.0,0.009]
[1735202783376,0.041726,95944.0,95942.0,0.00156339]
[1735202783563,0.14,95943.0,95942.0,0.00156339]
[1735202783873,0.041733,95927.0,95924.0,0.18584556]
[1735202784072,0.04173,95935.0,95924.0,0.18584556]
[1735202784767,0.15665654,95940.0,95924.0,0.18584556]
[1735202784967,0.1639,95939.0,95924.0,0.18584556]
[1735202785171,0.041732,95931.0,95924.0,0.18584556]
[1735202785563,0.041732,95931.0,95924.0,0.18884556]
[1735202785771,0.041732,95931.0,95924.0,0.003]
[1735202786479,0.041732,95931.0,95924.0,0.007]
[1735202786979,0.1679,95937.0,95924.0,0.004]
[1735202787165,0.041732,95929.0,95924.0,0.004]
[1735202787565,0.041729,95936.0,95924.0,0.002]
[1735202788264,0.1679,95937.0,95925.0,0.041734]
[1735202790773,0.209629,95937.0,95925.0,0.041734]
[1735202791074,0.209629,95937.0,95907.0,0.041741]
[1735202791075,0.1689,95937.0,95907.0,0.041741]
[1735202791382,0.041736,95921.0,95904.0,0.041743]
[1735202791569,0.041736,95920.0,95904.0,0.041743]
[1735202792079,0.041736,95920.0,95912.0,0.00356379]
[1735202792476,0.041732,95929.0,95912.0,0.00356379]
[1735202792668,0.041732,95929.0,95914.0,0.041738]
[1735202792867,0.1679,95937.0,95919.0,0.041736]
[1735202793267,0.00664307,95936.0,95912.0,0.00556379]
[1735202793468,0.041726,95944.0,95912.0,0.30356379]
[1735202793469,0.010731,95940.0,95912.0,0.30356379]
[1735202793673,0.11874667,95943.0,95929.0,0.041732]
[1735202793869,0.11874667,95943.0,95920.0,0.15665654]
[1735202794077,0.11874667,95943.0,95921.0,0.3187]
[1735202794276,0.11874667,95943.0,95939.0,0.041728]
[1735202794469,0.11874667,95943.0,95942.0,0.041726]
[1735202795177,0.04172,95958.0,95930.0,0.15665654]
[1735202795369,0.11874667,95964.0,95940.0,0.15665654]
[1735202795563,0.11874667,95964.0,95954.0,0.041721]
[1735202796177,0.11874667,95964.0,95963.0,0.041717]
[1735202796373,0.14843334,95970.0,95954.0,0.15665654]
[1735202796576,0.14843334,95970.0,95969.0,0.041715]
[1735202796883,0.11986845,95978.0,95974.0,0.041713]
[1735202797270,0.11986845,95978.0,95977.0,0.041711]
[1735202797468,0.17812001,95993.0,95992.0,0.041705]
[1735202798184,0.20780668,96007.0,96006.0,0.041699]
[1735202798972,0.20780668,96007.0,95997.0,0.15665654]
[1735202798973,0.04169,96026.0,96016.0,0.041694]
[1735202799171,0.04169,96026.0,96010.0,0.15665654]
[1735202799377,0.04169,96026.0,96018.0,0.041693]
[1735202800176,0.00156273,96030.0,96022.0,0.041692]
[1735202800376,0.007,96026.0,96022.0,0.041692]
[1735202801083,0.014,96026.0,96024.0,0.041691]
[1735202801471,0.014,96026.0,96018.0,0.001]
[1735202801673,0.041695,96014.0,95972.0,0.37298472]
[1735202801881,0.19835354,96010.0,95997.0,0.041702]
[1735202802178,0.041698,96009.0,95997.0,0.041702]
[1735202802383,0.041698,96009.0,95992.0,0.18584556]
[1735202802384,0.041704,95995.0,95992.0,0.18584556]
[1735202802683,0.041704,95993.0,95992.0,0.18584556]
[1735202803685,0.041704,95993.0,95974.0,0.041712]
[1735202803880,0.041704,95993.0,95992.0,0.001]
[1735202804269,0.041704,95993.0,95974.0,0.041712]
[1735202804474,0.041704,95993.0,95992.0,0.001]
[1735202805684,0.0417,96003.0,95992.0,0.001]
[1735202805883,0.1619,96008.0,95992.0,0.001]
[1735202806183,0.17221546,96008.0,95996.0,0.041703]
[1735202807175,0.21391346,96008.0,95992.0,0.001]
[1735202807374,0.21391346,96008.0,95973.0,0.01040155]
[1735202807583,0.21391346,96008.0,95988.0,0.041706]
[1735202807780,0.21391346,96008.0,95972.0,0.00156251]
[1735202808070,0.21591346,96008.0,95972.0,0.00156251]
[1735202808689,0.21591346,96008.0,95992.0,0.041704]
[1735202808985,0.21591346,96008.0,95993.0,0.041704]
[1735202809480,0.0417,96003.0,95993.0,0.041704]
[1735202810884,0.0417,96003.0,95993.0,0.042704]
[1735202811580,0.0417,96003.0,95993.0,0.041704]
[1735202812585,0.041701,96002.0,95993.0,0.041704]
[1735202813087,0.001,96003.0,95977.0,0.041711]
[1735202813389,0.001,96003.0,95972.0,0.00156251]
[1735202813390,0.041705,95992.0,95972.0,0.00156251]
[1735202813889,0.001,96003.0,95972.0,0.00156251]
[1735202814187,0.041702,95999.0,95972.0,0.00156251]
[1735202814389,0.001,96002.0,95980.0,0.15665654]
[1735202814579,0.001,96002.0,95977.0,0.003]
[1735202814779,0.001,96002.0,95991.0,0.041705]
[1735202815287,0.001,96002.0,95977.0,0.003]
[1735202815492,0.001,96002.0,95997.0,0.041702]
[1735202815789,0.17221546,96008.0,95997.0,0.041702]
[1735202816287,0.001,96002.0,95997.0,0.041702]
[1735202816481,0.001,96002.0,95972.0,0.00556251]
[1735202816683,0.15665654,96000.0,95972.0,0.00556251]
[1735202816887,0.15665654,96000.0,95989.0,0.041706]
[1735202817191,0.17321546,96008.0,95989.0,0.041706]
[1735202817374,0.15665654,96000.0,95989.0,0.041706]
[1735202817576,0.041705,95992.0,95981.0,0.041709]
[1735202817780,0.15665654,96000.0,95972.0,0.00156251]
[1735202817781,0.041709,95982.0,95972.0,0.00656251]
[1735202817980,0.001,96000.0,95999.0,0.041702]
[1735202818192,0.041691,96024.0,95994.0,0.041704]
[1735202818391,0.041691,96024.0,96011.0,0.041696]
[1735202818593,0.041691,96024.0,96010.0,0.15665654]
[1735202818890,0.041691,96024.0,96014.0,0.041695]
[1735202819093,0.0104694,96030.0,96014.0,0.041695]
[1735202819279,0.041692,96023.0,96014.0,0.041695]
[1735202819476,0.162,96022.0,96014.0,0.041695]
[1735202819690,0.162,96022.0,96010.0,0.15665654]
[1735202819881,0.041692,96021.0,96010.0,0.15665654]
[1735202820480,0.162,96022.0,96000.0,0.15665654]
[1735202820686,0.15665654,96020.0,95991.0,0.041705]
[1735202820983,0.15665654,96020.0,95989.0,0.18581476]
[1735202820984,0.041702,95998.0,95989.0,0.18581476]
[1735202821186,0.15665654,96020.0,95989.0,0.18581476]
[1735202821187,0.041699,96005.0,95989.0,0.18581476]
[1735202821491,0.15746284,96021.0,95997.0,0.041702]
[1735202821689,0.041698,96008.0,95997.0,0.041702]
[1735202821891,0.041699,96006.0,95997.0,0.041702]
[1735202823790,0.042699,96006.0,95997.0,0.041702]
[1735202824384,0.042699,96006.0,95998.0,0.041702]
[1735202824581,0.001,96006.0,95996.0,0.18581476]
[1735202824877,0.05227069,96014.0,96005.0,0.041699]
[1735202825186,0.001,96006.0,96005.0,0.041699]
[1735202826500,0.001,96006.0,95997.0,0.18581476]
[1735202826501,0.1429,96021.0,96015.0,0.041695]
[1735202826687,0.162,96022.0,96010.0,0.15665654]
[1735202826886,0.00156283,96026.0,96023.0,0.041691]
[1735202827089,0.00156283,96026.0,96024.0,0.041691]
[1735202827990,0.00656283,96026.0,96024.0,0.041691]
[1735202829489,0.00666889,96025.0,96024.0,0.042691]
[1735202829999,0.15100298,96061.0,96024.0,0.001]
[1735202830197,0.15100298,96061.0,96059.0,0.041675]
[1735202830386,0.15100298,96061.0,96024.0,0.301]
[1735202830387,0.15100298,96063.0,96036.0,0.00156186]
[1735202830593,0.15100298,96063.0,96040.0,0.15665654]
[1735202830898,0.15100298,96063.0,96052.0,0.041679]
[1735202831096,0.15100298,96063.0,96040.0,0.15665654]
[1735202831304,3.2e-07,96071.0,96054.0,0.041678]
[1735202831497,3.2e-07,96071.0,96070.0,0.041671]
[1735202831998,0.04322488,96089.0,96078.0,0.041667]
[1735202832195,0.041663,96088.0,96078.0,0.041667]
[1735202832493,0.00325598,96087.0,96069.0,0.041671]
[1735202832697,0.00156188,96089.0,96071.0,0.04167]
[1735202832698,0.041667,96080.0,96071.0,0.04167]
[1735202832999,0.041667,96080.0,96075.0,0.18692424]
[1735202833000,0.0032563,96079.0,96075.0,0.18692424]
[1735202833190,0.0032563,96078.0,96075.0,0.18692424]
[1735202833396,0.041667,96080.0,96078.0,0.002]
[1735202833603,0.00325631,96079.0,96078.0,0.002]
[1735202834008,0.00325631,96079.0,96078.0,0.043667]
[1735202834191,0.001,96080.0,96078.0,0.043667]
[1735202834401,0.00156188,96089.0,96088.0,0.041663]
[1735202836196,0.041651,96115.0,96079.0,0.15665654]
[1735202836393,0.041651,96115.0,96098.0,0.041658]
[1735202837098,0.1647,96116.0,96098.0,0.041658]
[1735202837601,0.102,96100.0,96098.0,0.041658]
[1735202837793,0.102,96100.0,96080.0,0.15665654]
[1735202837995,0.102,96100.0,96080.0,0.041666]
[1735202838294,0.041664,96087.0,96079.0,0.003]
[1735202838500,0.041666,96081.0,96079.0,0.18992424]
[1735202838993,0.041666,96081.0,96079.0,0.18692424]
[1735202839803,0.041668,96077.0,96075.0,0.24775301]
[1735202840002,0.29665654,96085.0,96051.0,0.041679]
[1735202840202,0.15665654,96078.0,96041.0,0.18515253]
[1735202840408,0.15665654,96051.0,96041.0,0.18515253]
[1735202841494,0.15665654,96070.0,96043.0,0.041682]
[1735202841697,0.15665654,96070.0,96036.0,0.00156186]
[1735202841698,0.041671,96069.0,96052.0,0.041678]
[1735202841904,0.041667,96078.0,96040.0,0.15665654]
[1735202842098,0.15665654,96070.0,96059.0,0.041675]
[1735202842295,0.001,96078.0,96041.0,0.006]
[1735202842506,0.001,96078.0,96068.0,0.041671]
[1735202842709,0.15765654,96078.0,96068.0,0.041671]
[1735202842910,0.15765654,96078.0,96041.0,0.006]
[1735202842911,0.15665654,96078.0,96059.0,0.041675]
[1735202843409,0.041672,96067.0,96050.0,0.041679]
[1735202843607,0.15665654,96060.0,96050.0,0.041679]
[1735202843799,0.041672,96067.0,96050.0,0.041679]
[1735202844195,0.041674,96063.0,96059.0,0.003]
[1735202844797,0.24092705,96080.0,96059.0,0.003]
[1735202845012,0.04167,96072.0,96059.0,0.003]
[1735202845712,0.001,96060.0,96055.0,0.041677]
[1735202846111,0.001,96060.0,96059.0,0.043676]
[1735202846303,0.25144907,96080.0,96059.0,0.043676]
[1735202846505,0.041672,96067.0,96059.0,0.002]
[1735202846707,0.24092705,96070.0,96059.0,0.002]
[1735202847009,0.04168,96050.0,96036.0,0.00156186]
[1735202847605,0.041676,96059.0,96044.0,0.041682]
[1735202848115,0.041677,96056.0,96044.0,0.041682]
[1735202848502,0.1628,96058.0,96036.0,0.00156186]
[1735202848702,0.041678,96055.0,96036.0,0.00156186]
[1735202848917,0.041678,96053.0,96036.0,0.00156186]
[1735202849303,0.041678,96053.0,96036.0,0.00556186]
[1735202849804,0.041678,96053.0,96040.0,0.041684]
[1735202850300,0.041675,96062.0,96036.0,0.00956186]
[1735202850504,0.3275,96068.0,96042.0,0.041683]
[1735202850712,0.041675,96060.0,96042.0,0.041683]
[1735202850912,0.041676,96058.0,96043.0,0.041682]
[1735202851414,0.3275,96068.0,96043.0,0.041682]
[1735202851714,0.041677,96055.0,96043.0,0.041682]
[1735202853009,0.041677,96055.0,96043.0,0.042682]
[1735202853413,0.041677,96055.0,96043.0,0.043682]
[1735202856216,0.00663333,96054.0,96024.0,0.24775301]
[1735202856532,0.041691,96025.0,96024.0,0.24775301]
[1735202857107,0.24092705,96035.0,95998.0,0.24775301]
[1735202857310,0.24092705,96050.0,96024.0,0.006]
[1735202857510,0.00664083,96049.0,96024.0,0.006]
[1735202857716,0.041686,96037.0,96024.0,0.006]
[1735202857918,0.041686,96037.0,96024.0,0.044691]
[1735202858612,0.041686,96037.0,96024.0,0.003]
[1735202859123,0.041683,96043.0,96029.0,0.041688]
[1735202859813,0.041683,96042.0,96029.0,0.041688]
[1735202861120,0.041683,96041.0,96029.0,0.041688]
[1735202861422,0.04168,96048.0,96034.0,0.041686]
[1735202861616,0.1554,96049.0,96034.0,0.041686]
[1735202862410,0.041682,96045.0,96035.0,0.041686]
[1735202862811,0.041682,96045.0,96029.0,0.001]
[1735202863013,0.1554,96049.0,96029.0,0.001]
[1735202863313,0.1574,96049.0,96043.0,0.041682]
[1735202864117,0.1554,96049.0,96043.0,0.041682]
[1735202864319,0.1554,96049.0,96035.0,0.041686]
[1735202864320,0.19708,96049.0,96035.0,0.041686]
[1735202864522,0.041683,96042.0,96029.0,0.001]
[1735202864816,0.041684,96041.0,96029.0,0.001]
[1735202865321,0.041684,96041.0,96033.0,0.041687]
[1735202865724,0.20508,96049.0,96035.0,0.041686]
[1735202866023,0.041681,96047.0,96035.0,0.041686]
[1735202866211,0.041681,96047.0,96037.0,0.041685]
[1735202867424,0.044681,96047.0,96037.0,0.041685]
[1735202868022,0.041681,96046.0,96037.0,0.041685]
[1735202869234,0.042681,96046.0,96037.0,0.041685]
[1735202869731,0.00668153,96045.0,96037.0,0.041685]
[1735202869930,0.004,96046.0,96037.0,0.041685]
[1735202870122,0.041682,96044.0,96037.0,0.041685]
[1735202870519,0.004,96046.0,96027.0,0.24775301]
[1735202870715,0.041688,96030.0,96027.0,0.24775301]
[1735202871125,0.041688,96030.0,96028.0,0.24775301]
[1735202872130,0.00669585,96029.0,96028.0,0.24775301]
[1735202872334,0.041689,96028.0,96015.0,0.24775301]
[1735202872636,0.041694,96017.0,96015.0,0.24775301]
[1735202872830,0.00669585,96016.0,96015.0,0.24775301]
[1735202873833,0.00669585,96016.0,95995.0,0.37553506]
[1735202873834,0.041694,96017.0,96008.0,0.041697]
[1735202874220,0.15629414,96020.0,95994.0,0.24775301]
[1735202874423,0.041694,96016.0,96015.0,0.003]
[1735202874826,0.041699,96005.0,95994.0,0.24775301]
[1735202875030,0.041699,96005.0,95993.0,0.24775301]
[1735202876019,0.041699,96005.0,96004.0,0.00356227]
[1735202876226,0.0522128,96005.0,96004.0,0.00356227]
[1735202876937,0.0532128,96005.0,96004.0,0.00356227]
[1735202877829,0.001,96005.0,96004.0,0.00356227]
[1735202878129,0.001,96005.0,96004.0,0.00156227]
[1735202878731,0.042699,96005.0,96004.0,0.00156227]
[1735202878931,0.043699,96005.0,96004.0,0.00156227]
[1735202879140,0.046699,96005.0,96004.0,0.00156227]
[1735202879333,0.046699,96005.0,95985.0,0.041707]
[1735202879334,0.005,96005.0,95985.0,0.041707]
[1735202879536,0.19799514,96000.0,95978.0,0.24775301]
[1735202879724,0.19799514,96000.0,95987.0,0.041707]
[1735202879927,0.19799514,96000.0,95988.0,0.041706]
[1735202880135,0.041701,96000.0,95977.0,0.40129301]
[1735202880327,0.005,96005.0,95996.0,0.041702]
[1735202880535,0.005,96005.0,96003.0,0.0417]
[1735202881134,0.005,96005.0,95995.0,0.041703]
[1735202881135,0.002,96005.0,95995.0,0.041703]
[1735202881334,0.005,96005.0,95990.0,0.15629414]
[1735202881535,0.003,96005.0,96001.0,0.041701]
[1735202881841,0.001,96005.0,96003.0,0.004]
[1735202882231,0.001,96005.0,96004.0,0.041699]
[1735202882429,0.01057149,96017.0,95988.0,0.24775301]
[1735202882633,0.15629414,96000.0,95990.0,0.004]
[1735202882831,0.001,96005.0,95995.0,0.004]
[1735202883027,0.041702,95998.0,95995.0,0.004]
[1735202883528,0.15629414,96010.0,95995.0,0.004]
[1735202883529,0.041703,95997.0,95995.0,0.004]
[1735202883733,0.1517,95996.0,95978.0,0.24775301]
[1735202883938,0.041709,95983.0,95978.0,0.24775301]
[1735202884436,0.1517,95996.0,95988.0,0.004]
[1735202884640,0.041706,95990.0,95988.0,0.004]
[1735202885230,0.17432689,95997.0,95978.0,0.002]
[1735202885231,0.041707,95987.0,95978.0,0.002]
[1735202885540,0.041707,95987.0,95978.0,0.006]
[1735202885732,0.1657,95995.0,95983.0,0.041708]
[1735202885933,0.041704,95993.0,95983.0,0.041708]
[1735202886235,0.15041239,96019.0,95989.0,0.041706]
[1735202886429,0.15629414,96010.0,95993.0,0.041704]
[1735202886736,0.041699,96005.0,95984.0,0.4649]
[1735202886928,0.041699,96005.0,95997.0,0.041702]
[1735202887440,0.041696,96011.0,95999.0,0.041701]
[1735202887632,0.15629414,96010.0,95999.0,0.041701]
[1735202887834,0.13081065,96018.0,95999.0,0.041701]
[1735202888142,0.041698,96009.0,95999.0,0.041701]
[1735202888329,0.041698,96008.0,95999.0,0.041701]
[1735202888730,0.001,96005.0,95999.0,0.041701]
[1735202889234,0.01063378,96011.0,95999.0,0.045701]
[1735202889235,0.041698,96007.0,95999.0,0.045701]
[1735202889438,0.01063378,96011.0,95999.0,0.045701]
[1735202889638,0.041695,96013.0,95999.0,0.045701]
[1735202889841,0.041692,96020.0,95999.0,0.004]
[1735202890136,0.35096,96024.0,96000.0,0.15629414]
[1735202890137,0.00076,96024.0,96000.0,0.15629414]
[1735202890343,0.041687,96033.0,96001.0,0.1375]
[1735202890536,0.12033047,96036.0,96020.0,0.041692]
[1735202890736,0.01222279,96025.0,96000.0,0.00156243]
[1735202890948,0.15629414,96020.0,96001.0,0.0417]
[1735202891240,0.041696,96012.0,96001.0,0.0417]
[1735202891435,0.041696,96012.0,96001.0,0.007]
[1735202891640,0.041696,96012.0,96002.0,0.0417]
[1735202892539,0.041696,96011.0,96002.0,0.0417]
[1735202894843,0.0417,96002.0,96000.0,0.00156243]
[1735202895941,0.041708,95985.0,95984.0,0.24775301]
[1735202896439,0.041711,95976.0,95975.0,0.30969126]
[1735202896841,0.041711,95976.0,95951.0,0.37521039]
[1735202896842,0.041711,95976.0,95954.0,0.30969126]
[1735202898030,0.041711,95976.0,95960.0,0.041718]
[1735202898237,0.042711,95976.0,95965.0,0.00656283]
[1735202898441,0.042711,95976.0,95965.0,0.04827883]
[1735202898834,0.042711,95976.0,95965.0,0.05327883]
[1735202898835,0.043711,95976.0,95965.0,0.05327883]
[1735202899037,0.041716,95966.0,95965.0,0.01156283]
[1735202899343,0.041719,95960.0,95946.0,0.041724]
[1735202899543,0.041719,95959.0,95946.0,0.041724]
[1735202899842,0.31258828,95960.0,95941.0,0.31025126]
[1735202900046,0.041725,95944.0,95941.0,0.30969126]
[1735202901051,0.041725,95944.0,95938.0,0.00156347]
[1735202902046,0.042725,95944.0,95938.0,0.00156347]
[1735202902651,0.043725,95944.0,95938.0,0.00156347]
[1735202903538,0.002,95944.0,95943.0,0.041726]
[1735202904043,0.041713,95972.0,95943.0,0.041726]
[1735202904242,0.041713,95972.0,95963.0,0.041717]
[1735202905349,0.041714,95970.0,95963.0,0.041717]
[1735202906049,0.041715,95968.0,95954.0,0.041721]
[1735202906243,0.041717,95963.0,95954.0,0.041721]
[1735202906445,0.15629414,95970.0,95939.0,0.01040762]
[1735202906647,0.041718,95961.0,95946.0,0.041724]
[1735202906944,0.041718,95961.0,95940.0,0.15629414]
[1735202907145,0.043714,95970.0,95956.0,0.04172]
[1735202907344,0.041715,95969.0,95956.0,0.04172]
[1735202907540,0.041716,95966.0,95956.0,0.04172]
[1735202908542,0.041719,95959.0,95947.0,0.041724]
[1735202908741,0.041719,95959.0,95949.0,0.041723]
[1735202909061,0.002,95966.0,95959.0,0.041719]
[1735202909645,0.002,95966.0,95950.0,0.15629414]
[1735202909956,0.002,95966.0,95965.0,0.041716]
[1735202910152,0.09063336,95991.0,95985.0,0.041704]
[1735202910655,0.09063336,95991.0,95989.0,0.041702]
[1735202911046,0.0015633,95996.0,95995.0,0.0417]
[1735202911350,0.09063336,96014.0,96005.0,0.041695]
[1735202912347,0.09063336,96014.0,96009.0,0.041694]
[1735202912550,0.1488419,96018.0,96009.0,0.041694]
[1735202912947,0.1382,96018.0,96009.0,0.041694]
[1735202913460,0.1382,96018.0,96005.0,0.001]
[1735202913762,0.17989,96018.0,96005.0,0.001]